[Event "*** Titled Tuesday Blitz"]
[Site "Chess.com"]
[Date "2021.04.27"]
[Round "4"]
[White "Abdimalik_Abdisalimov"]
[Black "vovachesss"]
[Result "0-1"]
[WhiteElo "2338"]
[BlackElo "2610"]
[TimeControl "180+1"]
[EndTime "10:40:32 PDT"]
[Termination "vovachesss won on time"]

1. d4 {[%clk 0:03:00.9]} 1... Nf6 {[%clk 0:02:58.2]} 2. c4 {[%clk 0:03:01]} 2...
c6 {[%clk 0:02:53.7]} 3. Bf4 {[%clk 0:02:57.6]} 3... Qb6 {[%clk 0:02:42.3]} 4.
b3 {[%clk 0:02:38.5]} 4... d5 {[%clk 0:02:39.2]} 5. c5 {[%clk 0:02:36.2]} 5...
Qd8 {[%clk 0:02:33.6]} 6. Nd2 {[%clk 0:02:33.7]} 6... Bf5 {[%clk 0:02:33.4]} 7.
e3 {[%clk 0:02:30.6]} 7... Nbd7 {[%clk 0:02:31.6]} 8. Ngf3 {[%clk 0:02:27.9]}
8... Nh5 {[%clk 0:02:15.5]} 9. Be2 {[%clk 0:02:15.3]} 9... Nxf4 {[%clk
0:02:09.6]} 10. exf4 {[%clk 0:02:16.2]} 10... Qc7 {[%clk 0:02:04.3]} 11. g3
{[%clk 0:02:12.7]} 11... g6 {[%clk 0:02:03.6]} 12. O-O {[%clk 0:02:11]} 12...
Bg7 {[%clk 0:02:03.7]} 13. Re1 {[%clk 0:02:10.5]} 13... O-O {[%clk 0:02:03]} 14.
b4 {[%clk 0:02:10.1]} 14... f6 {[%clk 0:01:57.2]} 15. Nb3 {[%clk 0:02:07.2]}
15... e5 {[%clk 0:01:56.7]} 16. fxe5 {[%clk 0:02:05.8]} 16... fxe5 {[%clk
0:01:56.7]} 17. dxe5 {[%clk 0:02:04.7]} 17... Nxe5 {[%clk 0:01:57.4]} 18. Nfd4
{[%clk 0:01:49.8]} 18... Bh3 {[%clk 0:01:50]} 19. f4 {[%clk 0:01:47.1]} 19...
Qf7 {[%clk 0:01:39.9]} 20. Bf1 {[%clk 0:01:37.4]} 20... Bxf1 {[%clk 0:01:35]}
21. Rxf1 {[%clk 0:01:37.2]} 21... Nc4 {[%clk 0:01:34.5]} 22. Qd3 {[%clk
0:01:29.3]} 22... Rae8 {[%clk 0:01:32.7]} 23. Rae1 {[%clk 0:01:28.4]} 23... Re7
{[%clk 0:01:05.7]} 24. Kf2 {[%clk 0:01:10.7]} 24... Rfe8 {[%clk 0:00:49.2]} 25.
Rxe7 {[%clk 0:00:44.8]} 25... Qxe7 {[%clk 0:00:50.1]} 26. Qc3 {[%clk 0:00:35.2]}
26... Qe4 {[%clk 0:00:35.8]} 27. Re1 {[%clk 0:00:31.8]} 27... Qxe1+ {[%clk
0:00:09.1]} 28. Qxe1 {[%clk 0:00:30.3]} 28... Rxe1 {[%clk 0:00:10]} 29. Kxe1
{[%clk 0:00:30.5]} 29... Kf7 {[%clk 0:00:10.9]} 30. Ke2 {[%clk 0:00:29.3]} 30...
Bf6 {[%clk 0:00:07.1]} 31. a4 {[%clk 0:00:28.7]} 31... a6 {[%clk 0:00:06.5]} 32.
b5 {[%clk 0:00:26.5]} 32... axb5 {[%clk 0:00:06.6]} 33. axb5 {[%clk 0:00:25.4]}
33... cxb5 {[%clk 0:00:04.7]} 34. Nxb5 {[%clk 0:00:26.3]} 34... h5 {[%clk
0:00:03.5]} 35. Kd3 {[%clk 0:00:24.5]} 35... Ke6 {[%clk 0:00:03.5]} 36. N3d4+
{[%clk 0:00:22.9]} 36... Kd7 {[%clk 0:00:03.1]} 37. Ne2 {[%clk 0:00:19.3]} 37...
Na5 {[%clk 0:00:01.6]} 38. Nec3 {[%clk 0:00:18.4]} 38... Kc6 {[%clk 0:00:01.4]}
39. Nd6 {[%clk 0:00:17.4]} 39... Kxc5 {[%clk 0:00:01.2]} 40. Ne8 {[%clk
0:00:15]} 40... Bxc3 {[%clk 0:00:01.6]} 41. Kxc3 {[%clk 0:00:15.7]} 41... Nc6
{[%clk 0:00:01.9]} 42. Ng7 {[%clk 0:00:13.7]} 42... d4+ {[%clk 0:00:02.4]} 43.
Kd3 {[%clk 0:00:13.5]} 43... Nb4+ {[%clk 0:00:03]} 44. Kd2 {[%clk 0:00:12.8]}
44... Kc4 {[%clk 0:00:03.9]} 45. Ne6 {[%clk 0:00:11.9]} 45... Nd5 {[%clk
0:00:04.3]} 46. Nf8 {[%clk 0:00:10.3]} 46... Ne7 {[%clk 0:00:04.9]} 47. h3
{[%clk 0:00:08.6]} 47... b5 {[%clk 0:00:05.3]} 48. g4 {[%clk 0:00:08.7]} 48...
hxg4 {[%clk 0:00:06.2]} 49. hxg4 {[%clk 0:00:08.5]} 49... b4 {[%clk 0:00:07.1]}
50. Nxg6 {[%clk 0:00:07.5]} 50... Nxg6 {[%clk 0:00:07.3]} 51. f5 {[%clk
0:00:08.1]} 51... Ne5 {[%clk 0:00:07.9]} 52. f6 {[%clk 0:00:06.2]} 52... Nf7
{[%clk 0:00:06.2]} 53. Kc2 {[%clk 0:00:04]} 53... b3+ {[%clk 0:00:06.5]} 54. Kb2
{[%clk 0:00:03.8]} 54... Kb4 {[%clk 0:00:07]} 55. Kb1 {[%clk 0:00:02.8]} 55...
Kc3 {[%clk 0:00:07.1]} 56. Kc1 {[%clk 0:00:01.6]} 56... b2+ {[%clk 0:00:07]} 57.
Kb1 {[%clk 0:00:01.2]} 57... d3 {[%clk 0:00:07.4]} 58. g5 {[%clk 0:00:01.8]}
58... Nxg5 {[%clk 0:00:07.6]} 59. f7 {[%clk 0:00:01.5]} 59... Nxf7 {[%clk
0:00:08.2]} 60. Ka2 {[%clk 0:00:01.2]} 60... Kc2 {[%clk 0:00:09.1]} 0-1

[Event "*** Titled Tuesday Blitz"]
[Site "Chess.com"]
[Date "2021.04.27"]
[Round "4"]
[White "Mrlammy"]
[Black "MerryPoppies"]
[Result "1/2-1/2"]
[WhiteElo "2258"]
[BlackElo "2093"]
[TimeControl "180+1"]
[EndTime "10:40:33 PDT"]
[Termination "Game drawn by repetition"]

1. e4 {[%clk 0:03:00.9]} 1... c6 {[%clk 0:02:59.5]} 2. d4 {[%clk 0:03:00]} 2...
d5 {[%clk 0:02:59.3]} 3. e5 {[%clk 0:03:00]} 3... Bf5 {[%clk 0:02:59]} 4. Nd2
{[%clk 0:02:58.2]} 4... Qb6 {[%clk 0:02:57.5]} 5. Nb3 {[%clk 0:02:57]} 5... Na6
{[%clk 0:02:46.8]} 6. Nf3 {[%clk 0:02:52.1]} 6... h6 {[%clk 0:02:40.3]} 7. Bd3
{[%clk 0:02:48.6]} 7... Bxd3 {[%clk 0:02:40]} 8. Qxd3 {[%clk 0:02:49.5]} 8... e6
{[%clk 0:02:40]} 9. O-O {[%clk 0:02:48.6]} 9... Ne7 {[%clk 0:02:30.8]} 10. c3
{[%clk 0:02:47.5]} 10... Ng6 {[%clk 0:02:27.9]} 11. Ne1 {[%clk 0:02:34.3]} 11...
c5 {[%clk 0:02:27.4]} 12. dxc5 {[%clk 0:02:32.4]} 12... Nxc5 {[%clk 0:02:27.2]}
13. Nxc5 {[%clk 0:02:32.5]} 13... Bxc5 {[%clk 0:02:27.1]} 14. Qe2 {[%clk
0:02:31.2]} 14... Qc7 {[%clk 0:02:16]} 15. Nd3 {[%clk 0:02:30.3]} 15... Bb6
{[%clk 0:02:15.4]} 16. Bf4 {[%clk 0:02:25.7]} 16... Qc4 {[%clk 0:02:10.1]} 17.
Bg3 {[%clk 0:02:22.1]} 17... O-O {[%clk 0:02:01.8]} 18. Rfd1 {[%clk 0:02:12.1]}
18... Rfd8 {[%clk 0:01:35.8]} 19. Qf3 {[%clk 0:02:09.8]} 19... d4 {[%clk
0:01:28]} 20. cxd4 {[%clk 0:02:07.1]} 20... Rxd4 {[%clk 0:01:26.5]} 21. b3
{[%clk 0:01:43.9]} 21... Qd5 {[%clk 0:01:16.2]} 22. Qe2 {[%clk 0:01:17.8]} 22...
Rd8 {[%clk 0:01:13.9]} 23. Nb2 {[%clk 0:01:10.9]} 23... Rd2 {[%clk 0:01:10.6]}
24. Rxd2 {[%clk 0:01:09.5]} 24... Qxd2 {[%clk 0:01:11.5]} 25. Qxd2 {[%clk
0:01:09.5]} 25... Rxd2 {[%clk 0:01:12.4]} 26. Nc4 {[%clk 0:01:08]} 26... Bd4
{[%clk 0:01:04.1]} 27. Nxd2 {[%clk 0:00:51.4]} 27... Bxa1 {[%clk 0:01:03.9]} 28.
f4 {[%clk 0:00:46.1]} 28... b5 {[%clk 0:00:55.1]} 29. Kf2 {[%clk 0:00:41.4]}
29... Kf8 {[%clk 0:00:55.2]} 30. Kf3 {[%clk 0:00:41.2]} 30... Ke7 {[%clk
0:00:55.4]} 31. Ne4 {[%clk 0:00:38.3]} 31... Bd4 {[%clk 0:00:53.5]} 32. Be1
{[%clk 0:00:32.2]} 32... Kd7 {[%clk 0:00:48]} 33. Nd6 {[%clk 0:00:26.9]} 33...
a6 {[%clk 0:00:29.5]} 34. Nxf7 {[%clk 0:00:24.1]} 34... Bc5 {[%clk 0:00:18.5]}
35. b4 {[%clk 0:00:16.7]} 35... Bf8 {[%clk 0:00:17.7]} 36. g3 {[%clk 0:00:14.1]}
36... Ne7 {[%clk 0:00:17]} 37. Nd6 {[%clk 0:00:13.2]} 37... Nd5 {[%clk 0:00:17]}
38. Ne4 {[%clk 0:00:12.1]} 38... Nxb4 {[%clk 0:00:16.4]} 39. a3 {[%clk
0:00:09.9]} 39... Nd5 {[%clk 0:00:16.2]} 40. f5 {[%clk 0:00:05.9]} 40... Nb6
{[%clk 0:00:15.8]} 41. fxe6+ {[%clk 0:00:05.9]} 41... Kxe6 {[%clk 0:00:15.8]}
42. Kf4 {[%clk 0:00:06.3]} 42... Nc4 {[%clk 0:00:15.3]} 43. Nf2 {[%clk 0:00:05]}
43... Nxa3 {[%clk 0:00:15.3]} 44. Nd3 {[%clk 0:00:05.3]} 44... Nc4 {[%clk
0:00:15]} 45. Ke4 {[%clk 0:00:05.3]} 45... a5 {[%clk 0:00:11.9]} 46. Nf4+ {[%clk
0:00:05.7]} 46... Kd7 {[%clk 0:00:11.1]} 47. Kd5 {[%clk 0:00:06.6]} 47... Ne3+
{[%clk 0:00:09.7]} 48. Ke4 {[%clk 0:00:05.9]} 48... Nc2 {[%clk 0:00:09.6]} 49.
Bxa5 {[%clk 0:00:04.9]} 49... b4 {[%clk 0:00:09.9]} 50. Kd3 {[%clk 0:00:05.4]}
50... b3 {[%clk 0:00:09.9]} 51. Kc3 {[%clk 0:00:05.4]} 51... Bb4+ {[%clk
0:00:07.3]} 52. Kxb3 {[%clk 0:00:05.5]} 52... Bxa5 {[%clk 0:00:07.3]} 53. Kxc2
{[%clk 0:00:06.1]} 53... Bc7 {[%clk 0:00:07.7]} 54. e6+ {[%clk 0:00:05.6]} 54...
Ke7 {[%clk 0:00:07.6]} 55. Nd5+ {[%clk 0:00:05.2]} 55... Kd6 {[%clk 0:00:06.7]}
56. Nxc7 {[%clk 0:00:06.1]} 56... Kxc7 {[%clk 0:00:07.1]} 57. Kd3 {[%clk
0:00:06.7]} 57... Kd6 {[%clk 0:00:07.6]} 58. Ke4 {[%clk 0:00:07.2]} 58... Kxe6
{[%clk 0:00:08.1]} 59. Kf4 {[%clk 0:00:08.1]} 59... Kf6 {[%clk 0:00:08.5]} 60.
Kg4 {[%clk 0:00:08.5]} 60... Kg6 {[%clk 0:00:08.9]} 61. Kh4 {[%clk 0:00:08.9]}
61... Kf6 {[%clk 0:00:08.3]} 62. Kh5 {[%clk 0:00:09.8]} 62... Kf7 {[%clk
0:00:08.5]} 63. Kg4 {[%clk 0:00:09.3]} 63... Kg6 {[%clk 0:00:08.5]} 64. Kf4
{[%clk 0:00:09.9]} 64... Kf6 {[%clk 0:00:08.8]} 65. h3 {[%clk 0:00:10.3]} 65...
g6 {[%clk 0:00:08.8]} 66. Kg4 {[%clk 0:00:11.2]} 66... h5+ {[%clk 0:00:08.1]}
67. Kf4 {[%clk 0:00:11.3]} 67... g5+ {[%clk 0:00:08.1]} 68. Ke4 {[%clk
0:00:11.5]} 68... Ke6 {[%clk 0:00:08.6]} 69. g4 {[%clk 0:00:10.2]} 69... h4
{[%clk 0:00:07.5]} 70. Kd4 {[%clk 0:00:10.4]} 70... Kd6 {[%clk 0:00:08]} 71. Ke4
{[%clk 0:00:10.8]} 71... Ke6 {[%clk 0:00:08.6]} 72. Kd4 {[%clk 0:00:11.1]} 72...
Kd6 {[%clk 0:00:09.1]} 73. Ke4 {[%clk 0:00:11.6]} 73... Ke6 {[%clk 0:00:09.7]}
1/2-1/2

[Event "*** Titled Tuesday Blitz"]
[Site "Chess.com"]
[Date "2021.04.27"]
[Round "4"]
[White "Shuvalov"]
[Black "Andrakhanova"]
[Result "0-1"]
[WhiteElo "2444"]
[BlackElo "2298"]
[TimeControl "180+1"]
[EndTime "10:40:34 PDT"]
[Termination "Andrakhanova won by resignation"]

1. Nf3 {[%clk 0:02:34.5]} 1... d5 {[%clk 0:02:58.2]} 2. c4 {[%clk 0:02:20.9]}
2... e6 {[%clk 0:02:57.5]} 3. g3 {[%clk 0:02:20.6]} 3... c6 {[%clk 0:02:57.2]}
4. b3 {[%clk 0:02:20]} 4... Nf6 {[%clk 0:02:57.1]} 5. Bb2 {[%clk 0:02:19.8]}
5... Nbd7 {[%clk 0:02:57.1]} 6. Bg2 {[%clk 0:02:20]} 6... Bd6 {[%clk 0:02:57]}
7. d4 {[%clk 0:02:17.6]} 7... O-O {[%clk 0:02:55.9]} 8. O-O {[%clk 0:02:17.3]}
8... Qe7 {[%clk 0:02:56.1]} 9. Qc1 {[%clk 0:02:15.8]} 9... Rd8 {[%clk
0:02:54.4]} 10. Rd1 {[%clk 0:02:15.1]} 10... a5 {[%clk 0:02:52]} 11. Nc3 {[%clk
0:02:14.6]} 11... h6 {[%clk 0:02:49.3]} 12. e3 {[%clk 0:02:14.5]} 12... Rb8
{[%clk 0:02:46.7]} 13. a4 {[%clk 0:02:05.5]} 13... b6 {[%clk 0:02:42.8]} 14. Ba3
{[%clk 0:02:04.6]} 14... Ba6 {[%clk 0:02:37.3]} 15. Bxd6 {[%clk 0:02:01.1]}
15... Qxd6 {[%clk 0:02:37.2]} 16. Nd2 {[%clk 0:01:59.7]} 16... e5 {[%clk
0:02:30.3]} 17. dxe5 {[%clk 0:01:57.5]} 17... Nxe5 {[%clk 0:02:31.2]} 18. Qc2
{[%clk 0:01:49.6]} 18... Qe6 {[%clk 0:02:10.1]} 19. cxd5 {[%clk 0:01:45.2]}
19... cxd5 {[%clk 0:02:09.1]} 20. Nf3 {[%clk 0:01:43.2]} 20... Nxf3+ {[%clk
0:02:07.5]} 21. Bxf3 {[%clk 0:01:44.1]} 21... Rbc8 {[%clk 0:02:05.2]} 22. Qd2
{[%clk 0:01:42.4]} 22... Ne4 {[%clk 0:01:57]} 23. Nxe4 {[%clk 0:01:21.9]} 23...
dxe4 {[%clk 0:01:57.9]} 24. Qxd8+ {[%clk 0:01:22.4]} 24... Rxd8 {[%clk
0:01:58.4]} 25. Rxd8+ {[%clk 0:01:23.3]} 25... Kh7 {[%clk 0:01:59]} 26. Bg2
{[%clk 0:01:24.2]} 26... Bd3 {[%clk 0:01:58.5]} 27. Rc1 {[%clk 0:01:01.8]} 27...
Qxb3 {[%clk 0:01:55.4]} 28. Rd4 {[%clk 0:01:00.6]} 28... f5 {[%clk 0:01:50]} 29.
g4 {[%clk 0:00:59.7]} 29... Qb2 {[%clk 0:01:44.1]} 30. Re1 {[%clk 0:00:57]}
30... Qd2 {[%clk 0:01:30.7]} 31. Ra1 {[%clk 0:00:56.4]} 31... Qc3 {[%clk
0:01:28.7]} 32. Rd1 {[%clk 0:00:55.6]} 32... Be2 {[%clk 0:01:27.2]} 33. gxf5
{[%clk 0:00:49]} 33... Bxd1 {[%clk 0:01:24]} 34. Rxd1 {[%clk 0:00:49.9]} 34...
Qc2 {[%clk 0:01:12.6]} 35. Rd4 {[%clk 0:00:49.4]} 35... Qb1+ {[%clk 0:01:08.4]}
36. Bf1 {[%clk 0:00:48.8]} 36... h5 {[%clk 0:01:04.6]} 37. Kg2 {[%clk
0:00:46.3]} 37... Kh6 {[%clk 0:01:04.2]} 38. Bb5 {[%clk 0:00:41]} 38... Kg5
{[%clk 0:00:59.1]} 39. Rd5 {[%clk 0:00:38.3]} 39... h4 {[%clk 0:00:50]} 40. h3
{[%clk 0:00:38.2]} 40... Kf6 {[%clk 0:00:46.6]} 41. Rd6+ {[%clk 0:00:33.6]}
41... Kxf5 {[%clk 0:00:46.7]} 42. Rxb6 {[%clk 0:00:25.9]} 42... Qd1 {[%clk
0:00:43.8]} 43. Ra6 {[%clk 0:00:19.1]} 43... Qf3+ {[%clk 0:00:41.3]} 44. Kg1
{[%clk 0:00:19.4]} 44... g5 {[%clk 0:00:24.3]} 45. Rxa5 {[%clk 0:00:14.6]} 45...
Kf6 {[%clk 0:00:20.5]} 46. Bf1 {[%clk 0:00:13.8]} 46... Qd1 {[%clk 0:00:19.7]}
47. Ra6+ {[%clk 0:00:12.9]} 47... Ke5 {[%clk 0:00:19.8]} 48. a5 {[%clk
0:00:13.8]} 48... g4 {[%clk 0:00:18]} 49. Rb6 {[%clk 0:00:11.9]} 49... g3 {[%clk
0:00:17.2]} 50. fxg3 {[%clk 0:00:11.5]} 50... hxg3 {[%clk 0:00:18.1]} 51. Rb2
{[%clk 0:00:11.9]} 51... Qf3 {[%clk 0:00:17.5]} 52. Rg2 {[%clk 0:00:11.2]} 52...
Qxe3+ {[%clk 0:00:17.5]} 53. Kh1 {[%clk 0:00:11.7]} 53... Qf3 {[%clk 0:00:17.6]}
54. Kg1 {[%clk 0:00:11.6]} 54... e3 {[%clk 0:00:17.5]} 55. a6 {[%clk 0:00:11.6]}
55... Kf4 {[%clk 0:00:15.3]} 56. h4 {[%clk 0:00:11.2]} 56... Qc6 {[%clk
0:00:13.8]} 57. h5 {[%clk 0:00:10.2]} 57... Kg4 {[%clk 0:00:12.6]} 58. Be2+
{[%clk 0:00:09.6]} 58... Kh4 {[%clk 0:00:12.7]} 59. Bf1 {[%clk 0:00:08.8]} 59...
Qb6 {[%clk 0:00:10.7]} 60. Ra2 {[%clk 0:00:08.6]} 60... e2+ {[%clk 0:00:10.5]}
61. Kg2 {[%clk 0:00:08.6]} 61... exf1=Q+ {[%clk 0:00:10.1]} 62. Kxf1 {[%clk
0:00:08.8]} 62... Qb1+ {[%clk 0:00:09.9]} 63. Kg2 {[%clk 0:00:09]} 63... Qxa2+
{[%clk 0:00:10.8]} 64. Kf3 {[%clk 0:00:09.1]} 64... Qxa6 {[%clk 0:00:10.4]} 65.
h6 {[%clk 0:00:07.9]} 65... Qxh6 {[%clk 0:00:10.2]} 0-1

[Event "*** Titled Tuesday Blitz"]
[Site "Chess.com"]
[Date "2021.04.27"]
[Round "4"]
[White "Witik"]
[Black "AldokhinIvan"]
[Result "1/2-1/2"]
[WhiteElo "2705"]
[BlackElo "2537"]
[TimeControl "180+1"]
[EndTime "10:40:39 PDT"]
[Termination "Game drawn by agreement"]

1. d4 {[%clk 0:02:59.9]} 1... Nf6 {[%clk 0:02:59.9]} 2. Bf4 {[%clk 0:02:59.3]}
2... e6 {[%clk 0:02:57.5]} 3. e3 {[%clk 0:02:59.3]} 3... Nc6 {[%clk 0:02:56.7]}
4. Nf3 {[%clk 0:02:48.1]} 4... d6 {[%clk 0:02:56.7]} 5. c4 {[%clk 0:02:47.8]}
5... h6 {[%clk 0:02:47.2]} 6. h3 {[%clk 0:02:47.5]} 6... g5 {[%clk 0:02:46.3]}
7. Bh2 {[%clk 0:02:46.3]} 7... Bg7 {[%clk 0:02:46.4]} 8. Nc3 {[%clk 0:02:46.3]}
8... Qe7 {[%clk 0:02:42.1]} 9. Be2 {[%clk 0:02:45.8]} 9... Bd7 {[%clk
0:02:38.4]} 10. Qc2 {[%clk 0:02:43]} 10... a6 {[%clk 0:01:55.3]} 11. a3 {[%clk
0:02:38.2]} 11... O-O {[%clk 0:01:49.3]} 12. O-O {[%clk 0:02:11.4]} 12... g4
{[%clk 0:01:40.7]} 13. hxg4 {[%clk 0:02:11.2]} 13... Nxg4 {[%clk 0:01:41.2]} 14.
Bg3 {[%clk 0:02:11.8]} 14... f5 {[%clk 0:01:41.5]} 15. d5 {[%clk 0:02:04.9]}
15... Nce5 {[%clk 0:01:40.6]} 16. Nd4 {[%clk 0:01:57.7]} 16... c6 {[%clk
0:01:08.2]} 17. dxe6 {[%clk 0:01:53.4]} 17... Bxe6 {[%clk 0:01:07.8]} 18. Nxe6
{[%clk 0:01:44.6]} 18... Qxe6 {[%clk 0:01:06.8]} 19. Rad1 {[%clk 0:01:33.6]}
19... Rad8 {[%clk 0:01:06.2]} 20. b3 {[%clk 0:01:05.5]} 20... h5 {[%clk
0:00:56.5]} 21. Rfe1 {[%clk 0:01:02.7]} 21... Ng6 {[%clk 0:00:53.7]} 22. Bxg4
{[%clk 0:00:44.5]} 22... fxg4 {[%clk 0:00:30]} 23. Qe4 {[%clk 0:00:35.1]} 23...
Qf7 {[%clk 0:00:18.7]} 24. Ne2 {[%clk 0:00:27.7]} 24... h4 {[%clk 0:00:18.1]}
25. Bf4 {[%clk 0:00:28.2]} 25... d5 {[%clk 0:00:14.9]} 26. cxd5 {[%clk
0:00:28.2]} 26... cxd5 {[%clk 0:00:15.3]} 27. Qd3 {[%clk 0:00:24]} 27... d4
{[%clk 0:00:13.1]} 28. Qc4 {[%clk 0:00:13.1]} 28... Qxc4 {[%clk 0:00:07.5]} 29.
bxc4 {[%clk 0:00:14]} 29... d3 {[%clk 0:00:07.9]} 30. Bc7 {[%clk 0:00:03.5]}
30... Rc8 {[%clk 0:00:06.2]} 31. Bb6 {[%clk 0:00:02.9]} 31... dxe2 {[%clk
0:00:06]} 32. Rxe2 {[%clk 0:00:03.8]} 32... Ne5 {[%clk 0:00:06.6]} 33. c5 {[%clk
0:00:03.9]} 33... h3 {[%clk 0:00:06.8]} 34. Rd5 {[%clk 0:00:03.8]} 34... hxg2
{[%clk 0:00:06.5]} 35. Kxg2 {[%clk 0:00:04.7]} 35... Nc4 {[%clk 0:00:06.3]} 36.
e4 {[%clk 0:00:04.6]} 36... Rc6 {[%clk 0:00:05.5]} 37. e5 {[%clk 0:00:03.8]}
37... Nxe5 {[%clk 0:00:04.1]} 38. Rdxe5 {[%clk 0:00:04.1]} 38... Bxe5 {[%clk
0:00:04.6]} 39. Rxe5 {[%clk 0:00:05]} 39... Rcf6 {[%clk 0:00:05.2]} 40. Rg5+
{[%clk 0:00:05.1]} 40... Kf7 {[%clk 0:00:04.9]} 41. c6 {[%clk 0:00:05.6]} 41...
Rxc6 {[%clk 0:00:04.6]} 42. Be3 {[%clk 0:00:05.3]} 42... Rc4 {[%clk 0:00:04.4]}
43. Rf5+ {[%clk 0:00:04.7]} 43... Ke8 {[%clk 0:00:04.4]} 44. Re5+ {[%clk
0:00:05]} 44... Kd7 {[%clk 0:00:04.9]} 45. Rg5 {[%clk 0:00:04.8]} 45... Rf7
{[%clk 0:00:04.9]} 46. Rd5+ {[%clk 0:00:04.8]} 46... Kc6 {[%clk 0:00:04.9]} 47.
Rg5 {[%clk 0:00:05]} 47... Re4 {[%clk 0:00:05.1]} 48. Kg3 {[%clk 0:00:04.5]}
48... b5 {[%clk 0:00:04.8]} 49. Rg6+ {[%clk 0:00:04.4]} 49... Kd5 {[%clk
0:00:04.7]} 50. Rxa6 {[%clk 0:00:04.5]} 50... Rf3+ {[%clk 0:00:04.7]} 51. Kg2
{[%clk 0:00:04.9]} 51... Rexe3 {[%clk 0:00:04.9]} 52. fxe3 {[%clk 0:00:05.2]}
52... Rxe3 {[%clk 0:00:05.3]} 53. Rg6 {[%clk 0:00:03.9]} 53... Rxa3 {[%clk
0:00:03.7]} 54. Rxg4 {[%clk 0:00:03.8]} 54... Rc3 {[%clk 0:00:02.9]} 55. Kf2
{[%clk 0:00:04.2]} 55... Kc5 {[%clk 0:00:02.4]} 56. Ke2 {[%clk 0:00:04.7]} 56...
b4 {[%clk 0:00:02.9]} 57. Kd2 {[%clk 0:00:05.3]} 57... Rf3 {[%clk 0:00:02.8]}
58. Kc2 {[%clk 0:00:05.2]} 58... Rh3 {[%clk 0:00:03.1]} 59. Kb2 {[%clk
0:00:05.4]} 59... Kb5 {[%clk 0:00:03.6]} 60. Rg8 {[%clk 0:00:04.5]} 60... Kc4
{[%clk 0:00:04]} 61. Rc8+ {[%clk 0:00:04.3]} 61... Kb5 {[%clk 0:00:04.4]} 62.
Rb8+ {[%clk 0:00:04.8]} 62... Ka4 {[%clk 0:00:04.8]} 63. Ra8+ {[%clk 0:00:05.3]}
63... Kb5 {[%clk 0:00:05.3]} 64. Rb8+ {[%clk 0:00:06.2]} 64... Kc4 {[%clk
0:00:04.6]} 1/2-1/2

[Event "*** Titled Tuesday Blitz"]
[Site "Chess.com"]
[Date "2021.04.27"]
[Round "4"]
[White "Steegersee"]
[Black "viktorgen2021"]
[Result "0-1"]
[WhiteElo "2208"]
[BlackElo "2390"]
[TimeControl "180+1"]
[EndTime "10:40:39 PDT"]
[Termination "viktorgen2021 won by checkmate"]

1. e4 {[%clk 0:02:57.3]} 1... d5 {[%clk 0:02:58.9]} 2. exd5 {[%clk 0:02:49.1]}
2... Nf6 {[%clk 0:02:58.7]} 3. d4 {[%clk 0:02:45.2]} 3... g6 {[%clk 0:02:58.2]}
4. Nf3 {[%clk 0:02:43.8]} 4... Bg7 {[%clk 0:02:57.8]} 5. Bd3 {[%clk 0:02:42.7]}
5... O-O {[%clk 0:02:57.4]} 6. O-O {[%clk 0:02:43.1]} 6... b6 {[%clk 0:02:47.6]}
7. b3 {[%clk 0:02:33.7]} 7... Bb7 {[%clk 0:02:47.1]} 8. Bb2 {[%clk 0:02:29.8]}
8... Qxd5 {[%clk 0:02:44.8]} 9. c4 {[%clk 0:02:26.8]} 9... Qh5 {[%clk
0:02:44.1]} 10. Ne5 {[%clk 0:02:03.6]} 10... Rd8 {[%clk 0:02:33.4]} 11. Qxh5
{[%clk 0:02:00.6]} 11... Nxh5 {[%clk 0:02:34.3]} 12. Re1 {[%clk 0:01:54.1]}
12... c5 {[%clk 0:02:33]} 13. d5 {[%clk 0:01:50.2]} 13... Nd7 {[%clk 0:02:22.5]}
14. Nd2 {[%clk 0:01:40.8]} 14... Nf4 {[%clk 0:02:02.5]} 15. Bf1 {[%clk
0:01:38.6]} 15... e6 {[%clk 0:02:00.3]} 16. g3 {[%clk 0:01:17.2]} 16... Nh5
{[%clk 0:01:56.3]} 17. Nxf7 {[%clk 0:01:15.2]} 17... Bxb2 {[%clk 0:01:52.5]} 18.
Nxd8 {[%clk 0:01:09.7]} 18... Rxd8 {[%clk 0:01:47.7]} 19. Rab1 {[%clk
0:01:04.3]} 19... Bc3 {[%clk 0:01:47.3]} 20. dxe6 {[%clk 0:00:54.5]} 20... Bxd2
{[%clk 0:01:43.7]} 21. Red1 {[%clk 0:00:42.1]} 21... Ne5 {[%clk 0:01:42.4]} 22.
Bg2 {[%clk 0:00:38.9]} 22... Bxg2 {[%clk 0:01:19.8]} 23. Kxg2 {[%clk 0:00:39.8]}
23... Kf8 {[%clk 0:01:19.5]} 24. Rb2 {[%clk 0:00:24.5]} 24... Bg5 {[%clk
0:01:17.2]} 25. Rxd8+ {[%clk 0:00:23.3]} 25... Bxd8 {[%clk 0:01:17.3]} 26. f4
{[%clk 0:00:22.8]} 26... Nc6 {[%clk 0:01:13.9]} 27. Rd2 {[%clk 0:00:18.8]} 27...
Nd4 {[%clk 0:01:13.7]} 28. Kf2 {[%clk 0:00:12.2]} 28... Ng7 {[%clk 0:01:12.4]}
29. Rd3 {[%clk 0:00:10.4]} 29... Ngf5 {[%clk 0:01:10.6]} 30. Rd2 {[%clk
0:00:10.1]} 30... Ke7 {[%clk 0:01:10.9]} 31. Rd3 {[%clk 0:00:08.6]} 31... Kxe6
{[%clk 0:01:10.8]} 32. Rd2 {[%clk 0:00:09.2]} 32... Bf6 {[%clk 0:01:11]} 33. h3
{[%clk 0:00:08.6]} 33... Nd6 {[%clk 0:01:11.4]} 34. Ke3 {[%clk 0:00:06.4]} 34...
N4f5+ {[%clk 0:01:09]} 35. Kf2 {[%clk 0:00:03.2]} 35... Bd4+ {[%clk 0:01:08.2]}
36. Kf3 {[%clk 0:00:04.1]} 36... h5 {[%clk 0:01:07.2]} 37. Re2+ {[%clk
0:00:04.6]} 37... Kf6 {[%clk 0:01:06.5]} 38. g4 {[%clk 0:00:04.8]} 38... hxg4+
{[%clk 0:01:06.9]} 39. hxg4 {[%clk 0:00:05.7]} 39... Ne3 {[%clk 0:01:00.5]} 40.
Rh2 {[%clk 0:00:04.8]} 40... Nf1 {[%clk 0:00:55]} 41. Rh7 {[%clk 0:00:04.5]}
41... Nd2+ {[%clk 0:00:54.5]} 42. Ke2 {[%clk 0:00:04.5]} 42... N2e4 {[%clk
0:00:53.3]} 43. Rxa7 {[%clk 0:00:04.6]} 43... g5 {[%clk 0:00:46.8]} 44. Kf3
{[%clk 0:00:05.1]} 44... Nd2+ {[%clk 0:00:46.2]} 45. Ke2 {[%clk 0:00:04.3]}
45... Nb1 {[%clk 0:00:43.8]} 46. f5 {[%clk 0:00:04.1]} 46... Nc3+ {[%clk
0:00:41.4]} 47. Kf3 {[%clk 0:00:04.6]} 47... Nde4 {[%clk 0:00:39.2]} 48. Ra6
{[%clk 0:00:04.5]} 48... Nd2+ {[%clk 0:00:39.6]} 49. Kg3 {[%clk 0:00:04.4]}
49... Nce4+ {[%clk 0:00:39]} 50. Kg2 {[%clk 0:00:04.6]} 50... Ke5 {[%clk
0:00:39.5]} 51. Rxb6 {[%clk 0:00:04.2]} 51... Kf4 {[%clk 0:00:40.1]} 52. f6
{[%clk 0:00:03.1]} 52... Nxf6 {[%clk 0:00:39.3]} 53. a4 {[%clk 0:00:04]} 53...
Nxg4 {[%clk 0:00:38.3]} 54. a5 {[%clk 0:00:04.9]} 54... Ne3+ {[%clk 0:00:38.8]}
55. Kh2 {[%clk 0:00:03.6]} 55... g4 {[%clk 0:00:38.6]} 56. a6 {[%clk 0:00:02.2]}
56... Nf3+ {[%clk 0:00:38.9]} 57. Kh1 {[%clk 0:00:01.6]} 57... g3 {[%clk
0:00:39.3]} 58. Rg6 {[%clk 0:00:01.3]} 58... Nh4 {[%clk 0:00:31.3]} 59. Rxg3
{[%clk 0:00:01.3]} 59... Kxg3 {[%clk 0:00:30.8]} 60. a7 {[%clk 0:00:02.2]} 60...
Ng4 {[%clk 0:00:13.5]} 61. a8=Q {[%clk 0:00:03.1]} 61... Nf3 {[%clk 0:00:13.9]}
62. Qg8 {[%clk 0:00:04]} 62... Kh3 {[%clk 0:00:13]} 63. Qh8+ {[%clk 0:00:03.3]}
63... Nh4 {[%clk 0:00:12.9]} 64. Qg8 {[%clk 0:00:03.1]} 64... Kg3 {[%clk
0:00:12.1]} 65. Qd5 {[%clk 0:00:02.3]} 65... Nf3 {[%clk 0:00:10.9]} 66. Qd6+
{[%clk 0:00:02.9]} 66... Be5 {[%clk 0:00:10.7]} 67. Qd1 {[%clk 0:00:02.7]} 67...
Nf2# {[%clk 0:00:10.9]} 0-1